bitfinex/quotes_BTCUSD_20251117
["timestamp","ask_amount","ask_price","bid_price","bid_amount"]
[1763396648229,0.98373592,93491.0,93479.0,0.04734]
[1763396648426,0.98373592,93489.0,93479.0,0.04734]
[1763396648642,0.01945713,93488.0,93459.0,0.04341874]
[1763396648791,0.98373592,93480.0,93461.0,0.09487]
[1763396649000,0.01945713,93479.0,93461.0,0.09487]
[1763396649205,0.01945713,93479.0,93470.0,0.1129]
[1763396649407,0.01945713,93479.0,93461.0,0.09487]
[1763396649811,0.01945713,93479.0,93464.0,0.04734]
[1763396650024,0.98373592,93474.0,93465.0,0.014221]
[1763396650201,0.01945713,93473.0,93466.0,0.02009596]
[1763396650406,0.01945713,93472.0,93466.0,0.11496596]
[1763396650618,0.01945713,93471.0,93466.0,0.11496596]
[1763396650838,0.01945713,93470.0,93466.0,0.11496596]
[1763396651060,0.01945713,93469.0,93466.0,0.12646256]
[1763396651276,0.01945713,93468.0,93466.0,0.09487]
[1763396651489,0.98373592,93475.0,93466.0,0.09487]
[1763396651490,0.01945713,93467.0,93466.0,0.09487]
[1763396651946,0.01945713,93479.0,93466.0,0.11496721]
[1763396652150,0.98373592,93480.0,93466.0,0.11596721]
[1763396652151,0.01945713,93478.0,93466.0,0.11596721]
[1763396652356,0.98373592,93480.0,93466.0,0.11596721]
[1763396652357,0.01945713,93477.0,93466.0,0.09487]
[1763396652552,0.01945713,93476.0,93466.0,0.09487]
[1763396652757,0.01945713,93475.0,93466.0,0.09487]
[1763396652977,0.01945713,93474.0,93467.0,0.01873669]
[1763396653215,0.01945713,93473.0,93468.0,0.01136067]
[1763396653419,0.01945713,93472.0,93469.0,0.02009536]
[1763396653632,0.01945713,93471.0,93469.0,0.02009536]
[1763396653836,0.98373592,93480.0,93479.0,0.11114]
[1763396654064,0.01955303,93480.0,93479.0,0.11114]
[1763396654258,0.01955303,93480.0,93471.0,0.09487]
[1763396654259,0.01955303,93480.0,93473.0,0.04734]
[1763396654465,0.01955303,93479.0,93474.0,0.02009217]
[1763396654672,0.01955303,93478.0,93475.0,0.01623022]
[1763396654866,0.98373592,93489.0,93476.0,0.02009131]
[1763396654867,0.01955303,93477.0,93476.0,0.02009131]
[1763396655078,0.01955303,93488.0,93476.0,0.11496131]
[1763396655270,0.01955303,93488.0,93476.0,0.17876131]
[1763396655470,0.01955303,93488.0,93476.0,0.15867]
[1763396656032,0.01955303,93488.0,93476.0,0.0638]
[1763396656240,0.01955303,93488.0,93473.0,0.04734]
[1763396656596,0.01955303,93488.0,93474.0,0.02009031]
[1763396657037,0.01955303,93488.0,93473.0,0.14221]
[1763396657997,0.98373592,93483.0,93474.0,0.11987031]
[1763396658211,0.01955303,93482.0,93475.0,0.01672103]
[1763396658420,0.00013219,93491.0,93476.0,0.06350932]
[1763396658421,0.01955303,93481.0,93476.0,0.06350932]
[1763396658629,0.01962712,93490.0,93476.0,0.16328932]
[1763396658842,0.01962712,93489.0,93478.0,0.04341874]
[1763396659042,0.01962712,93488.0,93480.0,0.04341874]
[1763396659245,0.01962712,93488.0,93477.0,0.12251503]
[1763396659246,0.80510872,93490.0,93482.0,0.04341874]
[1763396659455,0.80510872,93490.0,93489.0,0.06507]
[1763396659898,0.80510872,93490.0,93489.0,0.16485]
[1763396660112,0.80510872,93490.0,93482.0,0.1129]
[1763396660113,0.00013219,93491.0,93477.0,0.02273503]
[1763396660380,0.98373592,93487.0,93475.0,0.09978]
[1763396660791,0.98373592,93487.0,93486.0,0.06507]
[1763396661012,0.00013219,93491.0,93486.0,0.06507]
[1763396661218,0.00013219,93491.0,93490.0,0.06507]
[1763396661419,0.00013219,93491.0,93490.0,0.08366347]
[1763396661622,0.00013219,93491.0,93490.0,0.20352677]
[1763396662032,0.00013219,93491.0,93490.0,0.18344347]
[1763396662347,0.00013219,93491.0,93490.0,0.18444347]
[1763396662596,0.00013219,93491.0,93490.0,0.16585]
[1763396663707,0.00013219,93491.0,93490.0,0.16485]
[1763396663912,0.00013219,93491.0,93490.0,0.16585]
[1763396664316,0.00013219,93491.0,93490.0,0.16485]
[1763396664825,0.00013219,93491.0,93490.0,0.16585]
[1763396665020,0.00013219,93491.0,93490.0,0.182435]
[1763396666425,0.00013219,93491.0,93490.0,0.33875374]
[1763396666609,0.00013219,93491.0,93490.0,0.16485]
[1763396667024,0.00013219,93491.0,93490.0,0.16585]
[1763396667980,0.48587601,93500.0,93499.0,0.06457]
[1763396668184,0.67215597,93509.0,93499.0,0.06457]
[1763396668419,0.67228833,93509.0,93499.0,0.06457]
[1763396668624,0.67228833,93509.0,93500.0,0.019984]
[1763396668838,0.67228833,93509.0,93498.0,0.04182]
[1763396670193,0.67228833,93509.0,93499.0,0.02007672]
[1763396670407,0.00013236,93509.0,93508.0,0.06457]
[1763396670854,0.00013236,93509.0,93508.0,0.15802]
[1763396671177,2.36e-06,93509.0,93508.0,0.27092]
[1763396671380,0.67215597,93520.0,93508.0,0.34343819]
[1763396671583,0.67215597,93520.0,93509.0,0.09345]
[1763396671584,0.01964027,93519.0,93509.0,0.09345]
[1763396671987,0.01964027,93519.0,93518.0,0.11194]
[1763396672312,0.01964027,93519.0,93518.0,0.04737]
[1763396672844,0.01964027,93519.0,93518.0,0.219472]
[1763396673750,0.01964027,93519.0,93518.0,0.04737]
[1763396673939,0.01964027,93519.0,93518.0,0.20539]
[1763396674287,0.01964027,93519.0,93518.0,0.22545729]
[1763396674529,0.01964027,93519.0,93503.0,0.09345]
[1763396674794,0.01964027,93518.0,93503.0,0.09358236]
[1763396675037,0.67215597,93513.0,93504.0,0.01354024]
[1763396675237,0.01964027,93512.0,93504.0,0.03022898]
[1763396675366,0.67215597,93513.0,93505.0,0.09345]
[1763396675367,0.01964027,93511.0,93505.0,0.09345]
[1763396675578,0.01964027,93510.0,93506.0,0.01688257]
[1763396675763,0.01964027,93509.0,93506.0,0.01688257]
[1763396675960,0.01964027,93508.0,93507.0,0.09345]
[1763396676161,0.01964027,93508.0,93507.0,0.15802]
[1763396676999,0.01964027,93508.0,93507.0,0.20243874]
[1763396677206,0.01964027,93508.0,93507.0,0.15902]
[1763396677405,0.01964027,93508.0,93507.0,0.15802]
[1763396677606,0.01964027,93508.0,93507.0,0.17483524]
[1763396677817,0.01964027,93508.0,93507.0,0.19091722]
[1763396678425,0.01964027,93508.0,93507.0,0.23433596]
[1763396678621,0.01964027,93508.0,93507.0,0.33115398]
[1763396678799,0.67215597,93540.0,93516.0,0.15631874]
[1763396679041,0.67215597,93550.0,93539.0,0.11194]
[1763396679207,0.67215597,93550.0,93549.0,0.06457]
[1763396679401,0.67215597,93559.0,93549.0,0.11194]
[1763396679595,0.67215597,93559.0,93550.0,0.11349775]
[1763396679859,0.67215597,93559.0,93551.0,0.02254378]
[1763396680058,0.67215597,93559.0,93549.0,0.04737]
[1763396680236,0.67259736,93559.0,93549.0,0.04737]
[1763396680796,0.67259736,93559.0,93539.0,0.04737]
[1763396680970,0.67215597,93551.0,93539.0,0.04737]
[1763396681186,0.67215597,93551.0,93550.0,0.04737]
[1763396681331,0.00044139,93559.0,93550.0,0.04737]
[1763396681535,0.00044139,93559.0,93558.0,0.06457]
[1763396681857,0.00044139,93559.0,93551.0,0.09345]
[1763396682016,0.00044139,93559.0,93558.0,0.02004442]
[1763396682216,0.00044139,93559.0,93550.0,0.04737]
[1763396682779,0.67215597,93560.0,93523.0,0.09345]
[1763396682780,0.55925652,93560.0,93523.0,0.09345]
[1763396683004,0.67215597,93533.0,93532.0,0.04737]
[1763396683210,0.67215597,93542.0,93524.0,0.05871238]
[1763396683416,0.67215597,93534.0,93524.0,0.04737]
[1763396684186,0.67215597,93534.0,93533.0,0.06457]
[1763396684385,0.67215597,93543.0,93533.0,0.06457]
[1763396684617,0.67215597,93543.0,93534.0,0.02005689]
[1763396685121,0.67215597,93543.0,93526.0,0.02005689]
[1763396685340,0.67215597,93543.0,93527.0,0.01608769]
[1763396685548,0.67215597,93536.0,93528.0,0.02005968]
[1763396685728,0.67215597,93536.0,93528.0,0.11350968]
[1763396685927,0.05663951,93547.0,93524.0,0.04737]
[1763396685928,0.01787,93537.0,93524.0,0.04737]
[1763396686143,0.01787,93537.0,93477.0,0.04737]
[1763396686144,0.67215597,93534.0,93509.0,0.09345]
[1763396686336,1.34431194,93523.0,93509.0,0.09345]
[1763396686734,1.34431194,93523.0,93500.0,0.09345]
[1763396687542,1.34431194,93523.0,93513.0,0.03652139]
[1763396688044,1.34431194,93523.0,93513.0,0.00044139]
[1763396688662,0.0495,93530.0,93513.0,0.00044139]
[1763396688663,0.05663951,93527.0,93514.0,0.04737]
[1763396688864,0.01787,93537.0,93515.0,0.02006722]
[1763396688865,0.67215597,93523.0,93515.0,0.02006722]
[1763396689249,0.67215597,93523.0,93522.0,0.06457]
[1763396689441,0.67215597,93532.0,93522.0,0.15802]
[1763396689648,0.67215597,93532.0,93529.0,0.06457]
[1763396689893,0.05663951,93539.0,93530.0,0.02006043]
[1763396689894,0.72879548,93539.0,93530.0,0.02006043]
[1763396690065,0.72879548,93539.0,93514.0,0.04737]
[1763396690266,0.67215597,93524.0,93514.0,0.06149614]
[1763396690782,0.01962541,93523.0,93514.0,0.06149614]
[1763396690983,0.01962541,93522.0,93514.0,0.06149614]
[1763396691194,0.01962541,93521.0,93514.0,0.06149614]
[1763396691397,0.01962541,93520.0,93514.0,0.04737]
[1763396691605,0.01962541,93519.0,93514.0,0.04737]
[1763396691844,0.01962541,93518.0,93514.0,0.04737]
[1763396692015,0.01962541,93517.0,93514.0,0.04737]
[1763396692220,0.01962541,93516.0,93514.0,0.04737]
[1763396692427,1.34431194,93524.0,93514.0,0.04837]
[1763396692428,0.01963412,93515.0,93514.0,0.04837]
[1763396692626,0.01963412,93515.0,93514.0,0.06743956]
[1763396692826,0.01963412,93515.0,93514.0,0.22545956]
[1763396693045,0.01963412,93515.0,93514.0,0.24804966]
[1763396693242,0.01963892,93515.0,93514.0,0.2279801]
[1763396693610,0.01963892,93515.0,93514.0,0.2289801]
[1763396694011,0.01963892,93515.0,93514.0,0.2279801]
[1763396694270,0.01963892,93515.0,93514.0,0.20639]
[1763396694443,0.01963892,93515.0,93514.0,0.22645956]
[1763396694850,0.01963892,93515.0,93514.0,0.20639]
[1763396695673,0.01963892,93515.0,93514.0,0.20539]
[1763396695894,0.01963892,93515.0,93514.0,0.20639]
[1763396696097,0.01963892,93515.0,93514.0,0.22607314]
[1763396696428,0.01963892,93515.0,93514.0,0.22707314]
[1763396697052,0.05736483,93515.0,93514.0,0.22707314]
[1763396697667,0.01963892,93515.0,93514.0,0.22707314]
[1763396698491,0.01963892,93515.0,93514.0,0.20539]
[1763396698695,0.05738225,93515.0,93514.0,0.20539]
[1763396698896,0.05738225,93515.0,93514.0,0.20639]
[1763396699275,0.01963892,93515.0,93514.0,0.04737]
[1763396699390,0.07627843,93515.0,93514.0,0.04737]
[1763396699596,0.01963892,93515.0,93514.0,0.001]
[1763396699848,0.01963892,93515.0,93513.0,0.00044139]
[1763396700051,0.01963892,93514.0,93513.0,0.00044139]
[1763396700401,0.05664189,93515.0,93513.0,0.00044139]
[1763396700601,0.05664189,93517.0,93513.0,0.00044139]
[1763396700816,0.05664189,93517.0,93513.0,0.00700965]
[1763396701027,0.05664189,93516.0,93513.0,0.00044139]
[1763396701228,0.02672882,93532.0,93513.0,0.00044139]
[1763396701229,0.05664189,93517.0,93513.0,0.00044139]
[1763396701432,0.05664189,93517.0,93480.0,0.00999999]
[1763396701433,0.05664189,93514.0,93484.0,0.04517]
[1763396701633,0.01813,93485.0,93474.0,0.04139018]
[1763396701869,0.05662548,93477.0,93474.0,0.00013219]
[1763396702078,0.05662548,93476.0,93474.0,0.00013219]
[1763396702282,0.01813,93485.0,93474.0,0.00013219]
[1763396702283,0.05662548,93478.0,93474.0,0.00013219]
[1763396702499,0.05662548,93477.0,93474.0,0.00013219]
[1763396702859,0.04341874,93475.0,93474.0,0.00013219]
[1763396703270,0.01322664,93475.0,93474.0,0.00013219]
[1763396703484,0.00999999,93470.0,93449.0,56.58841211]
[1763396703692,0.09826154,93450.0,93449.0,56.58845925]
[1763396703901,0.04184,93450.0,93449.0,56.58845925]
[1763396704240,0.05630411,93451.0,93449.0,56.66572274]
[1763396704471,0.01999998,93480.0,93449.0,56.66572274]
[1763396704472,0.05630411,93455.0,93450.0,0.02010636]
[1763396704667,0.05630411,93462.0,93450.0,0.11221636]
[1763396704872,0.05630411,93472.0,93457.0,0.06422]
[1763396705186,0.04285999,93510.0,93484.0,0.10939]
[1763396705187,0.05630411,93494.0,93484.0,0.10939]
[1763396705358,0.05630411,93497.0,93485.0,0.02008491]
[1763396705550,0.05630411,93500.0,93473.0,0.04517]
[1763396705792,0.02673825,93499.0,93473.0,0.04517]
[1763396706011,0.05630411,93495.0,93473.0,0.04517]
[1763396706212,0.05630411,93496.0,93473.0,0.04517]
[1763396706413,0.05630411,93494.0,93462.0,0.04517]
[1763396706585,0.02673996,93493.0,93463.0,0.02009357]
[1763396707786,0.05630411,93497.0,93464.0,0.09211]
[1763396708000,0.01813,93496.0,93465.0,0.02009224]
[1763396708208,0.01813,93496.0,93466.0,0.01574194]
[1763396708411,0.02673939,93495.0,93462.0,0.04521714]
[1763396708613,0.01838099,93495.0,93463.0,0.01910024]
[1763396708818,0.05629984,93492.0,93462.0,4.714e-05]
[1763396709022,0.02674054,93491.0,93462.0,4.714e-05]
[1763396709229,0.001,93493.0,93462.0,4.714e-05]
[1763396709433,0.00999999,93480.0,93462.0,4.714e-05]
[1763396709638,0.01,93476.0,93449.0,56.57952614]
[1763396709856,0.01,93474.0,93449.0,56.57952614]
[1763396710078,0.02674569,93473.0,93449.0,56.57952614]
[1763396710304,0.04184,93450.0,93449.0,56.57952614]
[1763396711417,0.04184,93450.0,93449.0,56.57926585]
[1763396711848,0.06174,93450.0,93449.0,56.57926585]
[1763396712303,0.07174,93450.0,93449.0,56.57926585]
[1763396712511,0.0812519,93450.0,93449.0,56.57926585]
[1763396712939,0.0613519,93450.0,93449.0,56.57926585]
[1763396715047,0.0195119,93450.0,93449.0,56.57926585]
[1763396716060,0.0195119,93450.0,93449.0,56.58026585]
[1763396716494,0.0195119,93450.0,93449.0,56.57926585]
[1763396717563,0.0195119,93450.0,93449.0,56.58026585]
[1763396718316,0.0195119,93450.0,93449.0,56.57369545]
[1763396718923,0.0195119,93450.0,93449.0,56.57269545]
[1763396719172,0.0195119,93450.0,93449.0,56.56642209]
[1763396719173,0.0275919,93450.0,93449.0,56.56642209]
[1763396720821,0.0285919,93450.0,93449.0,56.56642209]
[1763396721262,0.0285919,93450.0,93449.0,56.55352698]
[1763396721695,0.08201064,93450.0,93449.0,56.12707698]
[1763396721908,2.11696397,93450.0,93449.0,56.12707698]
[1763396722125,0.0902117,93450.0,93449.0,56.12707698]
[1763396722354,0.08201064,93450.0,93449.0,56.12707698]
[1763396722561,0.0709901,93450.0,93449.0,56.12707698]
[1763396722780,0.05149874,93450.0,93449.0,56.12707698]
[1763396722991,0.071993,93450.0,93449.0,56.12707698]
[1763396723442,0.05532653,93450.0,93449.0,56.12707698]
[1763396723662,0.09874527,93450.0,93449.0,56.12707698]
[1763396724516,0.071993,93450.0,93449.0,56.12707698]
[1763396725164,0.05532653,93450.0,93449.0,56.12707698]
[1763396725406,0.05532653,93450.0,93449.0,55.92507698]
[1763396725855,0.09874527,93450.0,93449.0,55.92507698]
[1763396726074,2.071993,93450.0,93449.0,55.62207698]
[1763396726278,2.080993,93450.0,93449.0,55.62207698]
[1763396726486,2.081993,93450.0,93449.0,55.62207698]
[1763396726888,2.080993,93450.0,93449.0,55.62207698]
[1763396727091,1.90592978,93450.0,93449.0,55.62207698]
[1763396727336,0.001,93450.0,93449.0,55.62207698]
[1763396727537,0.01687,93450.0,93449.0,55.62207698]
[1763396727744,2.01687,93450.0,93449.0,55.62207698]
[1763396727894,2.02687,93450.0,93449.0,55.62207698]
[1763396728562,2.02687,93450.0,93449.0,55.52107698]
[1763396728563,2.27277,93450.0,93449.0,55.52107698]
[1763396728791,2.02787,93450.0,93449.0,50.3798348]
[1763396729010,2.07028874,93450.0,93449.0,48.32870035]
[1763396729237,2.02687,93450.0,93449.0,48.32870035]
[1763396729473,2.07128874,93450.0,93449.0,48.32870035]
[1763396729703,2.07028874,93450.0,93449.0,48.32870035]
[1763396730103,2.07128874,93450.0,93449.0,47.83548068]
[1763396730976,2.07128874,93450.0,93449.0,47.81062668]
[1763396731363,2.07128874,93450.0,93449.0,47.09191224]
[1763396731541,2.07028874,93450.0,93449.0,47.09191224]
[1763396731744,2.07128874,93450.0,93449.0,46.99194774]
[1763396731951,2.07128874,93450.0,93449.0,46.97725824]
[1763396732129,2.07128874,93450.0,93449.0,46.95374659]
[1763396732913,2.02787,93450.0,93449.0,45.64074659]
[1763396733113,2.08825609,93450.0,93449.0,45.23674659]
[1763396733320,2.08825609,93450.0,93449.0,45.21323494]
[1763396733321,2.07128874,93450.0,93449.0,45.21323494]
[1763396733523,2.07128874,93450.0,93449.0,42.71375998]
[1763396733731,2.07128874,93450.0,93449.0,41.60728013]
[1763396734133,2.07128874,93450.0,93449.0,41.55409839]
[1763396734337,2.07128874,93450.0,93449.0,41.40180781]
[1763396734536,2.14632142,93450.0,93449.0,41.30080781]
[1763396734841,2.07128874,93450.0,93449.0,40.65917719]
[1763396735063,2.07028874,93450.0,93449.0,40.65917719]
[1763396735282,2.07028874,93450.0,93449.0,40.54865079]
[1763396735499,2.07128874,93450.0,93449.0,40.54865079]
[1763396735698,2.07028874,93450.0,93449.0,40.54865079]
[1763396735901,2.07028874,93450.0,93449.0,40.10902017]
[1763396736201,2.07028874,93450.0,93449.0,39.89718967]
[1763396736202,2.07228874,93450.0,93449.0,39.89718967]
[1763396736408,2.07028874,93450.0,93449.0,39.65025974]
[1763396736635,2.07028874,93450.0,93449.0,38.48868673]
[1763396736775,2.07228874,93450.0,93449.0,38.38768673]
[1763396736980,2.07228874,93450.0,93449.0,38.1710817]
[1763396737424,2.07228874,93450.0,93449.0,37.1610817]
[1763396737599,2.07228874,93450.0,93449.0,36.6560817]
[1763396737791,2.07228874,93450.0,93449.0,36.22676124]
[1763396738439,2.07028874,93450.0,93449.0,35.32486039]
[1763396738651,2.07028874,93450.0,93449.0,33.16683773]
[1763396738848,2.07228874,93450.0,93449.0,33.16683773]
[1763396738993,2.07228874,93450.0,93449.0,33.06687323]
[1763396740898,2.07228874,93450.0,93449.0,32.55972168]
[1763396741102,2.07228874,93450.0,93449.0,32.15568658]
[1763396741518,2.07228874,93450.0,93449.0,32.05552393]
[1763396741732,2.07228874,93450.0,93449.0,31.54730614]
[1763396742069,2.20428992,93450.0,93449.0,31.53440234]
[1763396742287,2.07028874,93450.0,93449.0,31.24245134]
[1763396742601,2.07328874,93450.0,93449.0,29.00643672]
[1763396742684,2.07328874,93450.0,93449.0,29.00626344]
[1763396742907,2.07328874,93450.0,93449.0,28.78965841]
[1763396743129,3.17477692,93450.0,93449.0,28.73397757]
[1763396743407,3.17474188,93450.0,93449.0,28.2823205]
[1763396743695,3.28764188,93450.0,93449.0,27.81861606]
[1763396743974,2.31685274,93450.0,93449.0,24.44408385]
[1763396744187,1.19358874,93450.0,93449.0,23.62475574]
[1763396744403,1.19358874,93450.0,93449.0,22.44927312]
[1763396744404,1.81654074,93450.0,93449.0,22.44927312]
[1763396745056,1.81354074,93450.0,93449.0,22.44927312]
[1763396745266,1.81354074,93450.0,93449.0,22.40541447]
[1763396745485,1.81654074,93450.0,93449.0,21.96578385]
[1763396745723,1.81354074,93450.0,93449.0,21.96578385]
[1763396745977,1.81654074,93450.0,93449.0,21.96578385]
[1763396746226,0.80914074,93450.0,93449.0,21.96578385]
[1763396746460,0.80914074,93450.0,93449.0,21.52615323]
[1763396746705,0.80614074,93450.0,93449.0,21.52615323]
[1763396747630,0.80614074,93450.0,93449.0,21.51734343]
[1763396747857,0.80614074,93450.0,93449.0,20.13878774]
[1763396748078,0.80914074,93450.0,93449.0,20.13878774]
[1763396748301,1.83834074,93450.0,93449.0,20.13878774]
[1763396748747,1.84134074,93450.0,93449.0,20.13878774]
[1763396748976,1.84134074,93450.0,93449.0,17.06442074]
[1763396749872,1.84134074,93450.0,93449.0,17.0221465]
[1763396750113,1.84134074,93450.0,93449.0,17.01789397]
[1763396750324,1.97304607,93450.0,93449.0,17.01789397]
[1763396750686,1.84134074,93450.0,93449.0,17.01789397]
[1763396750886,1.83834074,93450.0,93449.0,17.01789397]
[1763396751092,1.97004607,93450.0,93449.0,17.01789397]
[1763396751298,1.97304607,93450.0,93449.0,16.81789397]
[1763396751516,1.97304607,93450.0,93449.0,16.74226297]
[1763396751517,1.83834074,93450.0,93449.0,16.74226297]
[1763396751735,1.83834074,93450.0,93449.0,16.53001958]
[1763396751919,1.84134074,93450.0,93449.0,16.53001958]
[1763396752162,0.83094074,93450.0,93449.0,16.53001958]
[1763396752363,0.83094074,93450.0,93449.0,16.52376028]
[1763396752672,0.83094074,93450.0,93449.0,15.70952228]
[1763396752673,1.07984074,93450.0,93449.0,15.70952228]
[1763396752812,1.07684074,93450.0,93449.0,15.70952228]
[1763396753230,0.883887,93450.0,93449.0,15.70952228]
[1763396753412,0.883887,93450.0,93449.0,15.69204636]
[1763396753609,0.883887,93450.0,93449.0,15.65979252]
[1763396754275,1.9138747,93450.0,93449.0,15.62753868]
[1763396754474,2.0267747,93450.0,93449.0,15.62753868]
[1763396755200,2.0237747,93450.0,93449.0,15.09051318]
[1763396755407,2.07019344,93450.0,93449.0,15.09051318]
[1763396755944,2.07019344,93450.0,93449.0,15.07582428]
[1763396756389,2.05060574,93450.0,93449.0,15.07582428]
[1763396756808,2.05060574,93450.0,93449.0,15.07537428]
[1763396757838,2.05060574,93450.0,93449.0,15.05090783]
[1763396758741,2.05060574,93450.0,93449.0,14.85090783]
[1763396759160,2.05060574,93450.0,93449.0,14.8301873]
[1763396759333,2.18222712,93450.0,93449.0,14.8301873]
[1763396759514,1.93632712,93450.0,93449.0,14.8301873]
[1763396759740,1.79470574,93450.0,93449.0,14.8301873]
[1763396759946,1.80470574,93450.0,93449.0,14.8301873]
[1763396760354,0.79730574,93450.0,93449.0,14.8301873]
[1763396760506,1.04320574,93450.0,93449.0,14.8301873]
[1763396761131,0.0278,93450.0,93449.0,14.8301873]
[1763396761609,0.0348,93450.0,93449.0,14.8301873]
[1763396761986,0.0378,93450.0,93449.0,14.8301873]
[1763396762192,0.0348,93450.0,93449.0,14.8301873]
[1763396762545,0.11026742,93450.0,93449.0,14.8301873]
[1763396762762,0.0348,93450.0,93449.0,14.8301873]
[1763396764294,0.05444768,93450.0,93449.0,14.8301873]
[1763396764734,0.0084932,93450.0,93449.0,14.8301873]
[1763396764878,0.09314565,93456.0,93449.0,14.8301873]
[1763396764879,0.01695665,93456.0,93449.0,14.8301873]
[1763396766292,0.01695665,93456.0,93449.0,14.6301873]
[1763396766502,0.01695665,93456.0,93450.0,0.04341874]
[1763396766731,0.01695665,93456.0,93449.0,14.6301873]
[1763396767145,0.00029375,93455.0,93449.0,14.6301873]
[1763396767353,0.00029375,93455.0,93450.0,0.04341874]
[1763396767557,0.00693994,93455.0,93450.0,0.04341874]
[1763396767762,0.00693994,93455.0,93449.0,14.6301873]
[1763396768563,0.00029375,93455.0,93449.0,14.6301873]
[1763396769221,0.00029375,93455.0,93451.0,0.04341874]
[1763396770927,0.00029375,93455.0,93450.0,0.04341874]
[1763396771068,0.00029375,93455.0,93450.0,0.06482055]
[1763396771522,0.00029375,93455.0,93450.0,0.04341874]
[1763396771909,0.00029375,93455.0,93451.0,0.02040815]
[1763396772707,0.00029375,93455.0,93450.0,0.04341874]
[1763396772910,0.00029375,93455.0,93451.0,0.02140159]
[1763396773516,0.00029375,93455.0,93450.0,0.00999999]
[1763396773717,0.00029375,93455.0,93451.0,0.02140159]
[1763396773925,0.00029375,93455.0,93449.0,14.47360604]
[1763396774365,0.00029375,93455.0,93450.0,0.0314018]
[1763396774581,0.00029375,93455.0,93451.0,0.10366938]
[1763396774782,0.00029375,93455.0,93452.0,0.02140136]
[1763396775381,0.00013225,93476.0,93451.0,0.10366938]
[1763396775615,0.00013225,93476.0,93471.0,0.04341874]
[1763396776018,0.00013225,93476.0,93472.0,0.02139678]
[1763396776245,0.00013225,93476.0,93454.0,0.04341874]
[1763396776443,0.00013225,93476.0,93461.0,0.04341874]
[1763396776786,0.00013225,93476.0,93463.0,0.04341874]
[1763396776992,0.00013225,93476.0,93471.0,0.001]
[1763396777177,0.00013225,93476.0,93472.0,0.04341874]
[1763396777366,0.00013225,93476.0,93474.0,0.04341874]
[1763396777596,0.00013225,93476.0,93475.0,0.07563823]
[1763396777803,0.00013225,93476.0,93475.0,0.05424214]
[1763396777985,0.00013225,93476.0,93475.0,0.04341874]
[1763396778212,0.00013225,93476.0,93475.0,0.06088227]
[1763396778427,0.00013225,93476.0,93475.0,0.04341874]
[1763396778662,0.00013225,93476.0,93461.0,0.001]
[1763396778888,0.01945164,93475.0,93461.0,0.001]
[1763396779092,0.02916556,93475.0,93440.0,0.0001327]
[1763396779317,0.02609783,93474.0,93440.0,0.0001327]
[1763396779555,0.00971392,93470.0,93440.0,0.0001327]
[1763396779803,0.00971392,93466.0,93440.0,0.0001327]
[1763396780031,0.02609783,93465.0,93440.0,0.0001327]
[1763396780232,0.01945164,93464.0,93440.0,0.0001327]
[1763396780501,0.02609783,93463.0,93440.0,0.0001327]
[1763396780737,0.01945164,93462.0,93450.0,0.02140181]
[1763396780938,0.01945164,93461.0,93449.0,14.29500785]
[1763396781153,0.01945164,93460.0,93449.0,14.29500785]
[1763396781364,0.01945164,93459.0,93449.0,14.29500785]
[1763396781585,0.01945164,93458.0,93449.0,14.29600785]
[1763396781792,0.01945164,93457.0,93449.0,14.29600785]
[1763396781993,0.01945164,93456.0,93449.0,14.29500785]
[1763396782119,0.01945164,93455.0,93449.0,14.29600785]
[1763396782564,0.01945164,93455.0,93450.0,0.02140181]
[1763396783007,0.01946287,93454.0,93450.0,0.02140181]
[1763396783214,0.01946287,93453.0,93449.0,14.29600785]
[1763396783428,0.01946287,93452.0,93449.0,14.29600785]
[1763396783657,0.01946287,93451.0,93449.0,14.29600785]
[1763396783875,0.03221263,93456.0,93449.0,14.43332015]
[1763396783876,0.01946287,93450.0,93449.0,14.43332015]
[1763396784096,0.01650091,93476.0,93450.0,0.04341874]
[1763396784363,0.0322081,93461.0,93450.0,0.71589243]
[1763396785047,0.01650091,93476.0,93450.0,0.04341874]
[1763396785269,0.05168414,93475.0,93450.0,0.04341874]
[1763396785494,0.01947877,93474.0,93450.0,0.04341874]
[1763396785955,0.01947877,93474.0,93449.0,14.29500785]
[1763396785956,0.00971392,93468.0,93449.0,14.29500785]
[1763396786193,0.00971392,93459.0,93450.0,0.001]
[1763396786459,0.01947877,93458.0,93450.0,0.001]
[1763396786681,0.03220537,93475.0,93450.0,0.001]
[1763396786682,0.01947877,93457.0,93450.0,0.001]
[1763396786929,0.01947877,93456.0,93450.0,0.001]
[1763396787156,0.0267454,93474.0,93450.0,0.001]
[1763396787157,0.01947877,93455.0,93450.0,0.001]
[1763396787383,0.01947877,93454.0,93451.0,0.04341874]
[1763396787606,0.01947877,93454.0,93450.0,0.04341874]
[1763396787607,0.01947877,93453.0,93452.0,0.0648201]
[1763396787830,0.01952319,93474.0,93453.0,0.04341874]
[1763396788059,0.01952319,93474.0,93449.0,14.29500785]
[1763396788060,0.01952276,93473.0,93465.0,0.04341874]
[1763396788361,0.01952276,93472.0,93450.0,0.001]
[1763396788576,0.01952276,93471.0,93451.0,0.10366938]
[1763396788804,0.01952276,93470.0,93460.0,0.67247369]
[1763396789038,0.01952276,93475.0,93461.0,0.00404998]
[1763396789255,0.01952276,93474.0,93461.0,0.00404998]
[1763396789457,0.01952276,93473.0,93461.0,0.07170235]
[1763396789666,0.01952276,93472.0,93461.0,0.07170235]
[1763396789892,0.01952276,93471.0,93461.0,0.00404998]
[1763396790106,0.01952276,93470.0,93461.0,0.67652313]
[1763396790312,0.01952276,93469.0,93460.0,0.67247369]
[1763396790532,0.01952276,93468.0,93461.0,0.00405024]
[1763396790737,0.01650091,93476.0,93461.0,0.03101653]
[1763396790738,0.01952276,93467.0,93461.0,0.03101653]
[1763396790957,0.01952276,93466.0,93462.0,0.04341874]
[1763396791161,0.01952276,93466.0,93461.0,0.03101653]
[1763396791162,0.01650091,93476.0,93471.0,0.04341874]
[1763396791372,0.01650091,93476.0,93466.0,0.67247369]
[1763396791581,0.01959336,93475.0,93467.0,0.04746528]
[1763396791798,0.01959336,93474.0,93467.0,0.04341874]
[1763396792025,0.01650091,93476.0,93471.0,0.04341874]
[1763396792228,0.01650091,93476.0,93473.0,0.04341874]
[1763396792441,0.01650091,93476.0,93471.0,0.04341874]
[1763396792442,0.01650091,93476.0,93475.0,0.04341874]
[1763396794567,0.01650091,93476.0,93475.0,0.04541874]
[1763396794790,0.01650091,93476.0,93475.0,0.04341874]
[1763396795317,0.01650091,93476.0,93475.0,0.04641874]
[1763396795516,0.01650091,93476.0,93475.0,0.003]
[1763396795715,0.03612194,93476.0,93466.0,0.67247369]
[1763396795951,0.01962103,93475.0,93467.0,0.07129391]
[1763396796360,0.01962103,93475.0,93465.0,0.67247369]
[1763396796740,0.01962103,93475.0,93466.0,0.0040471]
[1763396796926,0.01962103,93475.0,93467.0,0.04341874]
[1763396797122,0.01962103,93475.0,93469.0,0.04341874]